[Event "*** SCC Grand Prix: Titled Tuesday Blitz"]
[Site "Chess.com"]
[Date "2020.06.23"]
[Round "9"]
[White "Parhamov"]
[Black "Fandorine"]
[Result "1-0"]
[WhiteElo "3069"]
[BlackElo "2895"]
[TimeControl "180+1"]
[EndTime "11:46:22 PDT"]
[Termination "Parhamov won by resignation"]

1. d4 {[%clk 0:03:00.9]} 1... Nf6 {[%clk 0:02:59.9]} 2. c4 {[%clk 0:03:01.5]}
2... g6 {[%clk 0:03:00.2]} 3. g3 {[%clk 0:03:01.1]} 3... Bg7 {[%clk 0:03:00.5]}
4. Bg2 {[%clk 0:03:01.1]} 4... O-O {[%clk 0:03:01.1]} 5. Nf3 {[%clk 0:03:00.4]}
5... d6 {[%clk 0:02:54.8]} 6. O-O {[%clk 0:03:00.5]} 6... Nc6 {[%clk 0:02:54.7]}
7. Nc3 {[%clk 0:03:00.3]} 7... a6 {[%clk 0:02:55]} 8. b3 {[%clk 0:02:55.3]} 8...
Rb8 {[%clk 0:02:53.6]} 9. Bb2 {[%clk 0:02:53.8]} 9... Bd7 {[%clk 0:02:53.6]} 10.
d5 {[%clk 0:02:52.5]} 10... Na5 {[%clk 0:02:36.9]} 11. Qc2 {[%clk 0:02:47.3]}
11... c5 {[%clk 0:02:14.2]} 12. dxc6 {[%clk 0:02:42.7]} 12... bxc6 {[%clk
0:02:11.4]} 13. e4 {[%clk 0:02:41.5]} 13... Bg4 {[%clk 0:02:07.7]} 14. Na4
{[%clk 0:02:40.7]} 14... c5 {[%clk 0:01:47.4]} 15. e5 {[%clk 0:02:28.9]} 15...
Bf5 {[%clk 0:01:40.3]} 16. Qe2 {[%clk 0:02:27.2]} 16... Ne8 {[%clk 0:01:27.5]}
17. Rad1 {[%clk 0:02:19.7]} 17... Qc7 {[%clk 0:01:05.2]} 18. Rfe1 {[%clk
0:02:07.4]} 18... Nc6 {[%clk 0:00:56.2]} 19. exd6 {[%clk 0:01:47.1]} 19... exd6
{[%clk 0:00:57.1]} 20. h3 {[%clk 0:01:44.3]} 20... Nf6 {[%clk 0:00:50]} 21. Qd2
{[%clk 0:01:33.3]} 21... Rbd8 {[%clk 0:00:42.2]} 22. g4 {[%clk 0:01:32.8]} 22...
Bc8 {[%clk 0:00:21.8]} 23. Qf4 {[%clk 0:01:32.8]} 23... Ne8 {[%clk 0:00:17.9]}
24. Bxg7 {[%clk 0:01:32.8]} 24... Nxg7 {[%clk 0:00:17.6]} 25. Ng5 {[%clk
0:01:32.8]} 25... h6 {[%clk 0:00:09.7]} 26. Ne4 {[%clk 0:01:32.6]} 26... f5
{[%clk 0:00:10.2]} 27. Nxd6 {[%clk 0:01:09.2]} 27... Kh7 {[%clk 0:00:04.8]} 28.
gxf5 {[%clk 0:00:32.6]} 28... Bxf5 {[%clk 0:00:04]} 29. Qg3 {[%clk 0:00:22.3]}
29... Nd4 {[%clk 0:00:03.2]} 30. Nxf5 {[%clk 0:00:20.3]} 30... Ne2+ {[%clk
0:00:03.5]} 31. Rxe2 {[%clk 0:00:18.4]} 31... Rxd1+ {[%clk 0:00:04.4]} 32. Kh2
{[%clk 0:00:18]} 32... Qxg3+ {[%clk 0:00:04.9]} 33. Nxg3 {[%clk 0:00:17.6]}
33... h5 {[%clk 0:00:05.8]} 34. Nxc5 {[%clk 0:00:17.6]} 34... h4 {[%clk
0:00:06.3]} 35. Nge4 {[%clk 0:00:17.9]} 35... Nh5 {[%clk 0:00:07.1]} 36. Ne6
{[%clk 0:00:17.9]} 36... Rf5 {[%clk 0:00:05.2]} 37. Bf3 {[%clk 0:00:18.1]} 37...
Rd3 {[%clk 0:00:02.6]} 38. Bg4 {[%clk 0:00:16.8]} 38... Ra5 {[%clk 0:00:03]} 39.
c5 {[%clk 0:00:16.2]} 1-0

[Event "*** SCC Grand Prix: Titled Tuesday Blitz"]
[Site "Chess.com"]
[Date "2020.06.23"]
[Round "9"]
[White "Colombiano07"]
[Black "alexsergeyev"]
[Result "1-0"]
[WhiteElo "2243"]
[BlackElo "2356"]
[TimeControl "180+1"]
[EndTime "11:46:24 PDT"]
[Termination "Colombiano07 won on time"]

1. Nf3 {[%clk 0:02:56.3]} 1... d5 {[%clk 0:02:58.9]} 2. b3 {[%clk 0:02:57.2]}
2... Nc6 {[%clk 0:02:57.4]} 3. Bb2 {[%clk 0:02:58.1]} 3... f6 {[%clk 0:02:56.5]}
4. d4 {[%clk 0:02:57.8]} 4... Bf5 {[%clk 0:02:53.2]} 5. e3 {[%clk 0:02:57.9]}
5... e6 {[%clk 0:02:51.7]} 6. Bd3 {[%clk 0:02:57.9]} 6... Nh6 {[%clk 0:02:50.5]}
7. O-O {[%clk 0:02:57.5]} 7... Bd6 {[%clk 0:02:49.2]} 8. Re1 {[%clk 0:02:57.4]}
8... O-O {[%clk 0:02:48.4]} 9. Nc3 {[%clk 0:02:57.5]} 9... a6 {[%clk 0:02:43.9]}
10. e4 {[%clk 0:02:57]} 10... dxe4 {[%clk 0:02:42.9]} 11. Nxe4 {[%clk
0:02:57.9]} 11... Qd7 {[%clk 0:02:27.9]} 12. c4 {[%clk 0:02:48.6]} 12... Rad8
{[%clk 0:02:24.5]} 13. Nxd6 {[%clk 0:02:47.5]} 13... Qxd6 {[%clk 0:02:23.1]} 14.
Qe2 {[%clk 0:02:41.8]} 14... Rfe8 {[%clk 0:02:21.3]} 15. Rad1 {[%clk 0:02:20.6]}
15... Qf4 {[%clk 0:02:14.2]} 16. Bc1 {[%clk 0:02:18.3]} 16... Bxd3 {[%clk
0:02:04.7]} 17. Rxd3 {[%clk 0:02:09.8]} 17... Qf5 {[%clk 0:01:59.5]} 18. Bxh6
{[%clk 0:02:08.1]} 18... gxh6 {[%clk 0:01:58.8]} 19. h3 {[%clk 0:02:04.4]} 19...
Kf7 {[%clk 0:01:43.2]} 20. Qe3 {[%clk 0:01:54.7]} 20... Rg8 {[%clk 0:01:35.8]}
21. Rd2 {[%clk 0:01:50.1]} 21... e5 {[%clk 0:01:05]} 22. d5 {[%clk 0:01:47]}
22... Ne7 {[%clk 0:00:56.2]} 23. Qxh6 {[%clk 0:01:32.7]} 23... Rg7 {[%clk
0:00:36.3]} 24. Nh4 {[%clk 0:01:08.2]} 24... Qg5 {[%clk 0:00:27.3]} 25. Qxg5
{[%clk 0:01:07.7]} 25... Rxg5 {[%clk 0:00:27.5]} 26. Rde2 {[%clk 0:01:05.5]}
26... Rdg8 {[%clk 0:00:25.9]} 27. f4 {[%clk 0:00:34.1]} 27... Rh5 {[%clk
0:00:24.4]} 28. Nf3 {[%clk 0:00:13.9]} 28... Rxh3 {[%clk 0:00:20.9]} 29. Kf2
{[%clk 0:00:12]} 29... Rhg3 {[%clk 0:00:20.3]} 30. Kf1 {[%clk 0:00:08.8]} 30...
Nf5 {[%clk 0:00:15.3]} 31. fxe5 {[%clk 0:00:08.5]} 31... R3g4 {[%clk 0:00:10.7]}
32. Rf2 {[%clk 0:00:03.1]} 32... Ng3+ {[%clk 0:00:07.2]} 33. Kg1 {[%clk
0:00:03.6]} 33... f5 {[%clk 0:00:06.3]} 34. e6+ {[%clk 0:00:03.6]} 34... Ke7
{[%clk 0:00:05.4]} 35. Nh2 {[%clk 0:00:04.4]} 35... Rd4 {[%clk 0:00:02.9]} 36.
Rf3 {[%clk 0:00:04.1]} 36... Rd2 {[%clk 0:00:01.8]} 37. Nf1 {[%clk 0:00:04.3]}
1-0

[Event "*** SCC Grand Prix: Titled Tuesday Blitz"]
[Site "Chess.com"]
[Date "2020.06.23"]
[Round "9"]
[White "Artyom_ChessMate"]
[Black "XDPS"]
[Result "0-1"]
[WhiteElo "2514"]
[BlackElo "2680"]
[TimeControl "180+1"]
[EndTime "11:46:26 PDT"]
[Termination "XDPS won by resignation"]

1. e4 {[%clk 0:03:00.8]} 1... c5 {[%clk 0:02:56.1]} 2. Nc3 {[%clk 0:03:00.1]}
2... a6 {[%clk 0:02:55.6]} 3. g3 {[%clk 0:02:59.5]} 3... g6 {[%clk 0:02:54.1]}
4. Bg2 {[%clk 0:02:58]} 4... Bg7 {[%clk 0:02:54.4]} 5. d3 {[%clk 0:02:58.2]}
5... Nc6 {[%clk 0:02:53.5]} 6. Be3 {[%clk 0:02:58.1]} 6... d6 {[%clk 0:02:53.8]}
7. Qd2 {[%clk 0:02:57.8]} 7... e5 {[%clk 0:02:53.7]} 8. Nge2 {[%clk 0:02:46]}
8... h5 {[%clk 0:02:52.9]} 9. h3 {[%clk 0:02:45.1]} 9... Be6 {[%clk 0:02:51.5]}
10. O-O {[%clk 0:02:35.8]} 10... Nge7 {[%clk 0:02:50.1]} 11. f4 {[%clk
0:02:35.3]} 11... Nd4 {[%clk 0:02:48.9]} 12. Nd1 {[%clk 0:02:10.9]} 12... Qd7
{[%clk 0:02:46]} 13. Kh2 {[%clk 0:02:09.2]} 13... f5 {[%clk 0:02:33.6]} 14. c3
{[%clk 0:02:07.7]} 14... Ndc6 {[%clk 0:02:29]} 15. Nf2 {[%clk 0:02:01.8]} 15...
h4 {[%clk 0:02:26.6]} 16. g4 {[%clk 0:01:38.6]} 16... fxg4 {[%clk 0:02:15.1]}
17. hxg4 {[%clk 0:01:39.5]} 17... h3 {[%clk 0:02:11.2]} 18. Bh1 {[%clk
0:01:12.9]} 18... exf4 {[%clk 0:01:55.9]} 19. Bxf4 {[%clk 0:01:04.7]} 19... Ne5
{[%clk 0:01:52.1]} 20. g5 {[%clk 0:00:53.7]} 20... d5 {[%clk 0:00:45.7]} 21.
Rad1 {[%clk 0:00:32.2]} 21... d4 {[%clk 0:00:43.5]} 22. cxd4 {[%clk 0:00:28.1]}
22... cxd4 {[%clk 0:00:43.8]} 23. Rc1 {[%clk 0:00:27.4]} 23... N7c6 {[%clk
0:00:43.8]} 24. a3 {[%clk 0:00:18.4]} 24... O-O {[%clk 0:00:43]} 25. b4 {[%clk
0:00:12.9]} 25... Rf7 {[%clk 0:00:42.4]} 26. Bg3 {[%clk 0:00:09.2]} 26... Raf8
{[%clk 0:00:41.4]} 27. Nf4 {[%clk 0:00:09.2]} 27... Bg4 {[%clk 0:00:30.7]} 28.
Rc5 {[%clk 0:00:06.2]} 28... Bf3 {[%clk 0:00:28.1]} 29. Rd5 {[%clk 0:00:05.4]}
29... Qe7 {[%clk 0:00:24.5]} 30. N4xh3 {[%clk 0:00:03.3]} 30... Bxh1 {[%clk
0:00:22.9]} 31. Kxh1 {[%clk 0:00:04.2]} 31... Rf3 {[%clk 0:00:18.9]} 32. Kg2
{[%clk 0:00:03.2]} 32... Rxd3 {[%clk 0:00:18.9]} 33. Qe2 {[%clk 0:00:03.2]}
33... Re3 {[%clk 0:00:19]} 34. Qd2 {[%clk 0:00:03.4]} 34... Nc4 {[%clk
0:00:15.1]} 35. Qa2 {[%clk 0:00:03.4]} 35... b5 {[%clk 0:00:14.9]} 36. a4 {[%clk
0:00:03.5]} 36... Ra3 {[%clk 0:00:14.9]} 37. Qb1 {[%clk 0:00:02.5]} 37... Ne3+
{[%clk 0:00:14.4]} 38. Kg1 {[%clk 0:00:01.7]} 38... Nxd5 {[%clk 0:00:14.7]} 39.
exd5 {[%clk 0:00:02.6]} 39... Rxg3+ {[%clk 0:00:15.4]} 40. Kh2 {[%clk
0:00:03.1]} 40... Qe3 {[%clk 0:00:15.1]} 41. dxc6 {[%clk 0:00:02.2]} 41... Be5
{[%clk 0:00:15.6]} 42. Kh1 {[%clk 0:00:01.3]} 42... Rxh3+ {[%clk 0:00:15.2]} 43.
Nxh3 {[%clk 0:00:02.2]} 43... Qxh3+ {[%clk 0:00:16.1]} 44. Kg1 {[%clk
0:00:03.1]} 0-1

[Event "*** SCC Grand Prix: Titled Tuesday Blitz"]
[Site "Chess.com"]
[Date "2020.06.23"]
[Round "9"]
[White "bazar-wokzal"]
[Black "novendrapriasmoro"]
[Result "0-1"]
[WhiteElo "2423"]
[BlackElo "2604"]
[TimeControl "180+1"]
[EndTime "11:46:26 PDT"]
[Termination "novendrapriasmoro won on time"]

1. e4 {[%clk 0:03:00.9]} 1... c5 {[%clk 0:02:59.8]} 2. c3 {[%clk 0:03:00.5]}
2... Nc6 {[%clk 0:03:00.7]} 3. d4 {[%clk 0:02:59.9]} 3... cxd4 {[%clk
0:03:01.6]} 4. cxd4 {[%clk 0:03:00.2]} 4... d5 {[%clk 0:03:01.6]} 5. exd5 {[%clk
0:03:00.5]} 5... Qxd5 {[%clk 0:03:02.5]} 6. Nf3 {[%clk 0:03:01]} 6... e6 {[%clk
0:03:02.7]} 7. a3 {[%clk 0:02:59.7]} 7... Nf6 {[%clk 0:03:02.7]} 8. Nc3 {[%clk
0:02:59.9]} 8... Qd8 {[%clk 0:03:02.2]} 9. Be3 {[%clk 0:03:00.1]} 9... Be7
{[%clk 0:03:02.3]} 10. Bd3 {[%clk 0:03:00.6]} 10... O-O {[%clk 0:03:02.4]} 11.
Qc2 {[%clk 0:03:01.1]} 11... h6 {[%clk 0:03:00.3]} 12. O-O {[%clk 0:02:59.9]}
12... Bd7 {[%clk 0:02:55.2]} 13. Rad1 {[%clk 0:02:55.7]} 13... Rc8 {[%clk
0:02:55.1]} 14. Qd2 {[%clk 0:02:55.2]} 14... Ng4 {[%clk 0:02:52.3]} 15. Bb1
{[%clk 0:02:53.7]} 15... Nxe3 {[%clk 0:02:50.9]} 16. fxe3 {[%clk 0:02:53.7]}
16... Bf6 {[%clk 0:02:32.5]} 17. Ne4 {[%clk 0:02:40.2]} 17... Be7 {[%clk
0:02:28.3]} 18. b4 {[%clk 0:02:35.3]} 18... f5 {[%clk 0:02:28]} 19. Nc5 {[%clk
0:02:34.7]} 19... b6 {[%clk 0:02:20.3]} 20. Nxd7 {[%clk 0:02:23.9]} 20... Qxd7
{[%clk 0:02:19.8]} 21. Ba2 {[%clk 0:02:24.5]} 21... Kh7 {[%clk 0:02:14.3]} 22.
Bb3 {[%clk 0:02:20.9]} 22... Bf6 {[%clk 0:02:03.2]} 23. Qa2 {[%clk 0:02:18.9]}
23... Rce8 {[%clk 0:01:59.5]} 24. Rc1 {[%clk 0:02:01.3]} 24... Qd6 {[%clk
0:01:54.1]} 25. Rc2 {[%clk 0:01:41.9]} 25... e5 {[%clk 0:01:20.7]} 26. Rfc1
{[%clk 0:01:38.7]} 26... Nb8 {[%clk 0:01:20.3]} 27. dxe5 {[%clk 0:01:19.3]}
27... Bxe5 {[%clk 0:01:21.2]} 28. Rd2 {[%clk 0:01:14.2]} 28... Qf6 {[%clk
0:01:18.8]} 29. Qb1 {[%clk 0:01:05.6]} 29... Kh8 {[%clk 0:01:16.1]} 30. Rd5
{[%clk 0:00:58.4]} 30... Bb2 {[%clk 0:00:58.5]} 31. Rc7 {[%clk 0:00:34.2]} 31...
Rxe3 {[%clk 0:00:48.9]} 32. Bc2 {[%clk 0:00:24.4]} 32... Be5 {[%clk 0:00:25.2]}
33. Rxa7 {[%clk 0:00:21.8]} 33... Nc6 {[%clk 0:00:18.7]} 34. Rb7 {[%clk
0:00:17.3]} 34... Nd4 {[%clk 0:00:14.6]} 35. Nxd4 {[%clk 0:00:13.5]} 35... Bxd4
{[%clk 0:00:11.3]} 36. Kh1 {[%clk 0:00:13.4]} 36... Qe6 {[%clk 0:00:10]} 37. h3
{[%clk 0:00:02]} 37... Re1+ {[%clk 0:00:09.5]} 0-1

[Event "*** SCC Grand Prix: Titled Tuesday Blitz"]
[Site "Chess.com"]
[Date "2020.06.23"]
[Round "9"]
[White "chenxiaoyuer"]
[Black "AttilaTurzo"]
[Result "1-0"]
[WhiteElo "2396"]
[BlackElo "2491"]
[TimeControl "180+1"]
[EndTime "11:46:26 PDT"]
[Termination "chenxiaoyuer won by resignation"]

1. e4 {[%clk 0:03:00.9]} 1... c5 {[%clk 0:02:59.3]} 2. Nf3 {[%clk 0:02:58.9]}
2... d6 {[%clk 0:02:59.9]} 3. d4 {[%clk 0:02:58]} 3... cxd4 {[%clk 0:03:00.8]}
4. Nxd4 {[%clk 0:02:58.3]} 4... Nf6 {[%clk 0:03:01.4]} 5. Nc3 {[%clk 0:02:58.8]}
5... a6 {[%clk 0:03:01.8]} 6. Be2 {[%clk 0:02:58.6]} 6... e5 {[%clk 0:03:01.5]}
7. Nb3 {[%clk 0:02:59.1]} 7... Be7 {[%clk 0:03:01.7]} 8. O-O {[%clk 0:02:58.8]}
8... Be6 {[%clk 0:03:01.7]} 9. f4 {[%clk 0:02:57.8]} 9... exf4 {[%clk
0:03:02.6]} 10. Bxf4 {[%clk 0:02:56.8]} 10... Nc6 {[%clk 0:03:01.8]} 11. Kh1
{[%clk 0:02:57]} 11... O-O {[%clk 0:03:02.3]} 12. Qe1 {[%clk 0:02:57.5]} 12...
d5 {[%clk 0:03:00.7]} 13. Rd1 {[%clk 0:02:55.1]} 13... d4 {[%clk 0:02:50.6]} 14.
Be3 {[%clk 0:02:02.4]} 14... Bxb3 {[%clk 0:02:24.1]} 15. axb3 {[%clk 0:01:40.1]}
15... Qb6 {[%clk 0:02:22.8]} 16. Bg1 {[%clk 0:01:28.2]} 16... Rad8 {[%clk
0:02:13]} 17. Qg3 {[%clk 0:01:12.6]} 17... Qa5 {[%clk 0:02:03.9]} 18. Rf5 {[%clk
0:00:59.8]} 18... b5 {[%clk 0:01:17.4]} 19. Nd5 {[%clk 0:00:55.1]} 19... Nxe4
{[%clk 0:01:17.4]} 20. Qg4 {[%clk 0:00:20.7]} 20... Rxd5 {[%clk 0:01:14.7]} 21.
Rxd5 {[%clk 0:00:19.5]} 21... Nf6 {[%clk 0:01:14.7]} 22. Qf3 {[%clk 0:00:18.1]}
22... Nxd5 {[%clk 0:01:14.5]} 23. Qxd5 {[%clk 0:00:17.4]} 23... Nb4 {[%clk
0:01:12.3]} 24. Qxd4 {[%clk 0:00:13.2]} 24... Bf6 {[%clk 0:01:10]} 25. Qd2
{[%clk 0:00:10.2]} 25... Bxb2 {[%clk 0:01:04.7]} 26. Bc5 {[%clk 0:00:09.9]}
26... Nc6 {[%clk 0:01:02.4]} 27. Qxa5 {[%clk 0:00:09.3]} 27... Nxa5 {[%clk
0:01:02.7]} 28. Bxf8 {[%clk 0:00:10]} 28... Kxf8 {[%clk 0:01:03.5]} 29. Rd8+
{[%clk 0:00:10.1]} 29... Ke7 {[%clk 0:01:03.8]} 30. Ra8 {[%clk 0:00:10.5]} 30...
Nc6 {[%clk 0:00:58.7]} 31. Rxa6 {[%clk 0:00:10.2]} 31... Nd4 {[%clk 0:00:58.9]}
32. Bd3 {[%clk 0:00:10.2]} 32... b4 {[%clk 0:00:56.2]} 33. Rb6 {[%clk
0:00:09.2]} 33... Bc3 {[%clk 0:00:55.6]} 34. Rb7+ {[%clk 0:00:09.2]} 34... Kf6
{[%clk 0:00:55.6]} 35. Bc4 {[%clk 0:00:07.7]} 35... Ne6 {[%clk 0:00:53.6]} 36.
Kg1 {[%clk 0:00:06.2]} 36... h5 {[%clk 0:00:52.9]} 37. Kf2 {[%clk 0:00:06.1]}
37... Ng5 {[%clk 0:00:53.2]} 38. Ke3 {[%clk 0:00:04.8]} 38... h4 {[%clk
0:00:52.5]} 39. Kf4 {[%clk 0:00:04]} 39... Be5+ {[%clk 0:00:51.7]} 40. Kg4
{[%clk 0:00:03.3]} 40... Bc3 {[%clk 0:00:48.8]} 41. Rb6+ {[%clk 0:00:03.2]}
41... Ne6 {[%clk 0:00:48.1]} 42. Bxe6 {[%clk 0:00:03.2]} 42... fxe6 {[%clk
0:00:49]} 43. Kxh4 {[%clk 0:00:03.5]} 43... Kf5 {[%clk 0:00:47.6]} 44. Kg3
{[%clk 0:00:03.4]} 44... g5 {[%clk 0:00:45.8]} 45. Kf3 {[%clk 0:00:03.6]} 45...
g4+ {[%clk 0:00:44.8]} 46. Ke3 {[%clk 0:00:04]} 46... e5 {[%clk 0:00:42.6]} 47.
Rb8 {[%clk 0:00:04.2]} 47... Bd4+ {[%clk 0:00:42]} 48. Ke2 {[%clk 0:00:04.6]}
48... Bc3 {[%clk 0:00:41.4]} 49. Rg8 {[%clk 0:00:05]} 49... e4 {[%clk
0:00:37.8]} 50. h3 {[%clk 0:00:05.5]} 50... gxh3 {[%clk 0:00:37.6]} 51. gxh3
{[%clk 0:00:06.4]} 51... Kf6 {[%clk 0:00:36.1]} 52. h4 {[%clk 0:00:06.4]} 52...
Kf7 {[%clk 0:00:35.9]} 53. Rg4 {[%clk 0:00:07]} 53... Kf6 {[%clk 0:00:34.6]} 54.
Rxe4 {[%clk 0:00:07.1]} 54... Kf5 {[%clk 0:00:33.5]} 55. Rc4 {[%clk 0:00:08]}
55... Bf6 {[%clk 0:00:31.1]} 56. Rxb4 {[%clk 0:00:08.1]} 56... Kg6 {[%clk
0:00:30.1]} 57. Rc4 {[%clk 0:00:08.5]} 1-0

[Event "*** SCC Grand Prix: Titled Tuesday Blitz"]
[Site "Chess.com"]
[Date "2020.06.23"]
[Round "9"]
[White "Canairez"]
[Black "dey2580"]
[Result "1-0"]
[WhiteElo "2392"]
[BlackElo "2533"]
[TimeControl "180+1"]
[EndTime "11:46:27 PDT"]
[Termination "Canairez won on time"]

1. d4 {[%clk 0:03:00.9]} 1... Nf6 {[%clk 0:02:59.7]} 2. Nf3 {[%clk 0:02:55.5]}
2... e6 {[%clk 0:02:59.3]} 3. c4 {[%clk 0:02:55.9]} 3... Bb4+ {[%clk 0:02:58.7]}
4. Bd2 {[%clk 0:02:54.7]} 4... Qe7 {[%clk 0:02:58.5]} 5. a3 {[%clk 0:02:51.9]}
5... Bxd2+ {[%clk 0:02:56.9]} 6. Qxd2 {[%clk 0:02:52.8]} 6... b6 {[%clk
0:02:54.1]} 7. Nc3 {[%clk 0:02:52.8]} 7... Bb7 {[%clk 0:02:33.1]} 8. g3 {[%clk
0:02:47.2]} 8... d6 {[%clk 0:02:29.8]} 9. Bg2 {[%clk 0:02:47.2]} 9... O-O {[%clk
0:02:27.9]} 10. O-O {[%clk 0:02:47]} 10... c5 {[%clk 0:02:25.1]} 11. Rae1 {[%clk
0:02:42]} 11... cxd4 {[%clk 0:02:21.5]} 12. Nxd4 {[%clk 0:02:41.6]} 12... Bxg2
{[%clk 0:02:21.1]} 13. Kxg2 {[%clk 0:02:42.5]} 13... Rc8 {[%clk 0:02:18.3]} 14.
b3 {[%clk 0:02:29.7]} 14... Nc6 {[%clk 0:02:12.1]} 15. Rd1 {[%clk 0:02:17.5]}
15... Na5 {[%clk 0:02:07.6]} 16. e4 {[%clk 0:02:02.9]} 16... Qb7 {[%clk
0:02:07]} 17. Rfe1 {[%clk 0:02:00.4]} 17... g6 {[%clk 0:01:51]} 18. Qd3 {[%clk
0:01:55.6]} 18... a6 {[%clk 0:01:47]} 19. Qf3 {[%clk 0:01:36.6]} 19... Nd7
{[%clk 0:01:42.8]} 20. Qg4 {[%clk 0:01:03.4]} 20... Kg7 {[%clk 0:01:23.8]} 21.
Nxe6+ {[%clk 0:00:45.1]} 21... fxe6 {[%clk 0:01:23.7]} 22. Rxd6 {[%clk
0:00:41.5]} 22... Rf8 {[%clk 0:01:09.3]} 23. Qxe6 {[%clk 0:00:39.2]} 23... Rf7
{[%clk 0:01:04.7]} 24. b4 {[%clk 0:00:31.3]} 24... Nb3 {[%clk 0:00:42.3]} 25. c5
{[%clk 0:00:31.9]} 25... Raf8 {[%clk 0:00:32.4]} 26. f4 {[%clk 0:00:26.1]} 26...
Nbxc5 {[%clk 0:00:24.2]} 27. bxc5 {[%clk 0:00:25.4]} 27... Nxc5 {[%clk
0:00:24.9]} 28. Qe5+ {[%clk 0:00:25.5]} 28... Kg8 {[%clk 0:00:24.7]} 29. Nd5
{[%clk 0:00:26.4]} 29... b5 {[%clk 0:00:15.5]} 30. Rd1 {[%clk 0:00:24.2]} 30...
a5 {[%clk 0:00:11.6]} 31. Nf6+ {[%clk 0:00:23]} 31... Rxf6 {[%clk 0:00:11.7]}
32. Rxf6 {[%clk 0:00:23]} 32... Rxf6 {[%clk 0:00:08.9]} 33. Qxf6 {[%clk
0:00:23.9]} 33... Qxe4+ {[%clk 0:00:09.1]} 34. Kh3 {[%clk 0:00:24.5]} 34... Qe6+
{[%clk 0:00:05.9]} 35. Qxe6+ {[%clk 0:00:24]} 35... Nxe6 {[%clk 0:00:06.8]} 36.
Rd5 {[%clk 0:00:23.8]} 36... b4 {[%clk 0:00:05.7]} 37. axb4 {[%clk 0:00:24.4]}
37... axb4 {[%clk 0:00:06.2]} 38. Rb5 {[%clk 0:00:24.8]} 38... h5 {[%clk
0:00:04.8]} 39. Rxb4 {[%clk 0:00:25.1]} 39... Kf7 {[%clk 0:00:05.5]} 40. Rb6
{[%clk 0:00:24.9]} 40... Nd4 {[%clk 0:00:05.3]} 41. Ra6 {[%clk 0:00:24.8]} 41...
Nf5 {[%clk 0:00:03.4]} 42. Kg2 {[%clk 0:00:24.4]} 42... Nd4 {[%clk 0:00:03.5]}
43. Kf2 {[%clk 0:00:24.4]} 43... Nf5 {[%clk 0:00:03]} 44. Kf3 {[%clk 0:00:24.7]}
44... Nh6 {[%clk 0:00:03.4]} 45. Ke4 {[%clk 0:00:25.6]} 45... Ng4 {[%clk
0:00:03.7]} 46. h3 {[%clk 0:00:25.8]} 46... Nf2+ {[%clk 0:00:04]} 47. Ke5 {[%clk
0:00:26.2]} 47... Nxh3 {[%clk 0:00:04.5]} 48. Ra7+ {[%clk 0:00:26.8]} 48... Ke8
{[%clk 0:00:03.7]} 49. Kf6 {[%clk 0:00:27.7]} 49... Nf2 {[%clk 0:00:03.7]} 50.
Kxg6 {[%clk 0:00:27.8]} 50... Ne4 {[%clk 0:00:04.6]} 51. Kxh5 {[%clk 0:00:26.6]}
51... Nxg3+ {[%clk 0:00:05]} 52. Kg6 {[%clk 0:00:27.5]} 52... Ne4 {[%clk
0:00:05.9]} 53. f5 {[%clk 0:00:27.8]} 53... Nd6 {[%clk 0:00:05.3]} 54. f6 {[%clk
0:00:27.5]} 54... Kf8 {[%clk 0:00:01.2]} 55. f7 {[%clk 0:00:26.4]} 1-0

[Event "*** SCC Grand Prix: Titled Tuesday Blitz"]
[Site "Chess.com"]
[Date "2020.06.23"]
[Round "9"]
[White "LiemLe"]
[Black "BilodeauA"]
[Result "1-0"]
[WhiteElo "3006"]
[BlackElo "2869"]
[TimeControl "180+1"]
[EndTime "11:46:29 PDT"]
[Termination "LiemLe won by resignation"]

1. d4 {[%clk 0:03:00.9]} 1... d5 {[%clk 0:02:59.2]} 2. Nf3 {[%clk 0:02:59.7]}
2... Nf6 {[%clk 0:02:59.2]} 3. c4 {[%clk 0:02:57.7]} 3... dxc4 {[%clk
0:03:00.1]} 4. e3 {[%clk 0:02:57.4]} 4... Bg4 {[%clk 0:02:59.9]} 5. Bxc4 {[%clk
0:02:56.5]} 5... e6 {[%clk 0:03:00.4]} 6. h3 {[%clk 0:02:56.7]} 6... Bh5 {[%clk
0:03:00.5]} 7. Nc3 {[%clk 0:02:56.5]} 7... a6 {[%clk 0:03:01]} 8. e4 {[%clk
0:02:52.3]} 8... Bxf3 {[%clk 0:02:56.7]} 9. gxf3 {[%clk 0:02:51.2]} 9... c6
{[%clk 0:02:41.4]} 10. Be3 {[%clk 0:02:48.9]} 10... Nbd7 {[%clk 0:02:39.1]} 11.
f4 {[%clk 0:02:46.5]} 11... Bb4 {[%clk 0:02:36.5]} 12. Qf3 {[%clk 0:02:34.3]}
12... Qa5 {[%clk 0:02:34]} 13. Rc1 {[%clk 0:02:33.4]} 13... Nb6 {[%clk
0:02:24.4]} 14. Bb3 {[%clk 0:02:31]} 14... Na4 {[%clk 0:02:24.2]} 15. O-O {[%clk
0:01:57.5]} 15... Nxb2 {[%clk 0:01:56.5]} 16. Ne2 {[%clk 0:01:29.9]} 16... Nd3
{[%clk 0:01:28.8]} 17. Rcd1 {[%clk 0:01:23.9]} 17... Ne1 {[%clk 0:01:29]} 18.
Qh1 {[%clk 0:01:12.2]} 18... O-O-O {[%clk 0:01:29.1]} 19. Kh2 {[%clk 0:00:50.5]}
19... h5 {[%clk 0:01:19.9]} 20. Rfxe1 {[%clk 0:00:47.4]} 20... Ng4+ {[%clk
0:01:15.3]} 21. Kg2 {[%clk 0:00:47]} 21... Nxe3+ {[%clk 0:01:13.9]} 22. fxe3
{[%clk 0:00:47.9]} 22... Bxe1 {[%clk 0:01:14.5]} 23. Qxe1 {[%clk 0:00:48.3]}
23... Qc7 {[%clk 0:01:13.3]} 24. h4 {[%clk 0:00:44.1]} 24... Kb8 {[%clk
0:01:12]} 25. e5 {[%clk 0:00:43.7]} 25... Qe7 {[%clk 0:01:04.6]} 26. Rc1 {[%clk
0:00:40.7]} 26... f6 {[%clk 0:01:03.8]} 27. Qg3 {[%clk 0:00:40.6]} 27... fxe5
{[%clk 0:00:59.7]} 28. dxe5 {[%clk 0:00:35]} 28... Rd2 {[%clk 0:00:59.1]} 29.
Kf3 {[%clk 0:00:30.1]} 29... Rhd8 {[%clk 0:00:51.5]} 30. Qg5 {[%clk 0:00:28.6]}
30... Qa3 {[%clk 0:00:48.7]} 31. Rg1 {[%clk 0:00:20.5]} 31... a5 {[%clk
0:00:40.9]} 32. Bxe6 {[%clk 0:00:16.1]} 32... R8d3 {[%clk 0:00:37.8]} 33. f5
{[%clk 0:00:16.6]} 33... Qb2 {[%clk 0:00:22.3]} 34. Rg2 {[%clk 0:00:16.9]} 34...
Ka7 {[%clk 0:00:19]} 35. Bc4 {[%clk 0:00:15.7]} 35... Ra3 {[%clk 0:00:16.9]} 36.
e6 {[%clk 0:00:14.4]} 36... Qb1 {[%clk 0:00:10.1]} 37. e7 {[%clk 0:00:13.4]}
37... Qf1+ {[%clk 0:00:07.3]} 38. Rf2 {[%clk 0:00:13.5]} 38... Qh1+ {[%clk
0:00:07.8]} 39. Kg3 {[%clk 0:00:12.6]} 39... Qe4 {[%clk 0:00:05.2]} 40. Rf3
{[%clk 0:00:09]} 40... Rc2 {[%clk 0:00:04.7]} 41. Nd4 {[%clk 0:00:05.5]} 41...
Rxc4 {[%clk 0:00:04.4]} 42. Qxg7 {[%clk 0:00:05.7]} 42... Rxd4 {[%clk
0:00:04.2]} 43. Qxd4+ {[%clk 0:00:05.1]} 1-0